bitfinex-derivatives/quotes_ETHF0:USTF0_20250224
["timestamp","ask_amount","ask_price","bid_price","bid_amount"]
[1740411136714,0.0056083,2662.5,2662.4,4.92513416]
[1740411136914,0.7129,2663.3,2662.6,1.87776]
[1740411137123,3.2078,2663.2,2662.6,3.2078]
[1740411137516,3.2078,2662.9,2662.7,3.866]
[1740411137817,3.2078,2662.9,2662.2,3.865]
[1740411138015,0.75121,2662.3,2662.2,3.865]
[1740411138413,0.7512,2662.4,2662.2,3.865]
[1740411138615,3.9809,2662.8,2662.2,3.865]
[1740411138616,0.75121,2662.3,2662.2,3.865]
[1740411138821,3.2078,2662.5,2662.0,0.00563327]
[1740411138822,0.75127,2662.1,2662.0,0.00563327]
[1740411139021,0.75127,2662.1,2660.9,1.87901]
[1740411139022,3.2078,2662.1,2660.9,3.2078]
[1740411139221,3.2078,2661.4,2660.9,3.864]
[1740411139422,0.75166,2660.7,2660.6,20.841]
[1740411139623,3.2078,2661.1,2660.6,21.59268]
[1740411139825,3.9809,2661.3,2660.6,20.841]
[1740411140018,3.2078,2661.0,2660.6,20.841]
[1740411140217,0.7518,2660.2,2660.1,3.2078]
[1740411140819,0.75188,2660.0,2659.9,0.00563327]
[1740411141226,0.7456,2660.1,2659.9,0.00563327]
[1740411141423,3.2078,2660.9,2660.2,0.75179]
[1740411141723,3.2078,2660.6,2659.9,0.00563327]
[1740411142227,0.7221,2661.1,2660.2,3.2078]
[1740411142422,0.75158,2661.0,2660.3,7.0718]
[1740411142633,0.7221,2661.1,2660.3,7.0718]
[1740411142835,0.7516,2661.0,2660.6,0.75167]
[1740411143035,0.75158,2661.0,2660.6,0.75167]
[1740411143229,0.75161,2660.9,2660.6,0.75167]
[1740411143433,0.7221,2661.1,2660.6,3.2078]
[1740411143727,3.21343327,2661.2,2660.6,3.2078]
[1740411143933,3.21343327,2661.2,2661.1,0.75155]
[1740411143934,0.00563327,2661.2,2661.1,0.75155]
[1740411144130,0.00563327,2661.2,2661.1,4.61555]
[1740411144529,0.00563327,2661.2,2661.1,45.41555]
[1740411144730,0.7514,2661.7,2661.3,0.75147]
[1740411144932,0.7229,2661.9,2661.1,44.664]
[1740411145132,0.75136,2661.8,2661.4,0.75144]
[1740411145438,0.7229,2661.9,2661.2,3.2078]
[1740411145937,0.7229,2661.9,2661.3,0.00563327]
[1740411146431,3.2078,2662.8,2661.8,3.2078]
[1740411146635,3.90141915,2663.9,2661.9,3.863]
[1740411146636,3.2078,2662.9,2661.9,3.863]
[1740411146829,0.75117,2662.5,2661.9,3.863]
[1740411147029,0.75119,2662.4,2662.1,0.75126]
[1740411147333,3.2078,2662.9,2662.6,0.75111]
[1740411147642,3.2078,2662.9,2662.5,3.863]
[1740411148134,1.87789,2662.5,2661.9,20.841]
[1740411148337,0.75123,2662.3,2662.0,0.75129]
[1740411148928,3.2078,2662.6,2661.9,20.841]
[1740411149129,0.75104,2662.9,2662.6,0.75111]
[1740411149334,2.194,2663.1,2662.6,3.862]
[1740411149636,3.2078,2664.4,2663.0,3.2078]
[1740411149939,0.7654,2664.0,2663.4,3.2078]
[1740411150138,0.7654,2664.0,2663.8,0.75078]
[1740411150436,0.7654,2664.0,2663.9,3.862]
[1740411150634,3.2078,2664.4,2663.9,3.862]
[1740411150840,0.75067,2664.3,2663.9,4.61274]
[1740411151139,3.2078,2664.4,2663.9,3.862]
[1740411151328,3.2078,2664.4,2664.0,0.75072]
[1740411151329,0.75066,2664.3,2664.0,0.75072]
[1740411151739,3.2078,2664.4,2663.9,3.862]
[1740411151935,0.6678,2664.8,2664.0,3.2078]
[1740411152134,0.75059,2664.6,2664.0,3.2078]
[1740411152329,0.6678,2664.8,2664.0,3.2078]
[1740411152534,0.75058,2664.6,2664.0,3.2078]
[1740411152731,0.6678,2664.8,2664.0,3.2078]
[1740411152936,0.6678,2664.8,2664.1,3.86]
[1740411153139,3.2078,2665.1,2664.1,3.86]
[1740411153347,0.75051,2664.8,2664.4,0.7506]
[1740411153642,3.2078,2665.1,2664.1,3.86]
[1740411153846,0.75065,2664.3,2664.2,3.86]
[1740411154039,0.7507,2664.1,2664.0,7.0678]
[1740411154246,3.2078,2664.2,2663.6,3.86]
[1740411154439,0.75081,2663.8,2663.6,3.86]
[1740411154640,0.75075,2664.0,2663.6,3.86]
[1740411154836,1.87676,2664.1,2663.4,0.00563327]
[1740411155040,0.75087,2663.5,2663.4,0.00563327]
[1740411155539,0.7304,2663.7,2663.4,0.00563327]
[1740411156045,0.7304,2663.7,2663.6,0.75084]
[1740411156339,0.75084,2663.6,2663.5,3.859]
[1740411156745,1.48122,2663.7,2663.5,3.859]
[1740411156942,0.7304,2663.7,2663.6,0.75084]
[1740411157244,6.53826,2664.6,2663.5,8.94395]
[1740411157443,0.6898,2664.4,2663.9,0.75075]
[1740411157748,0.6898,2664.4,2663.5,8.94394]
[1740411157945,1.44043,2664.4,2664.2,0.75067]
[1740411158143,0.6898,2664.4,2663.8,3.2078]
[1740411158350,1.44043,2664.4,2664.2,0.75066]
[1740411158548,1.44044,2664.4,2664.1,4.60868]
[1740411158752,1.44044,2664.4,2664.2,0.75066]
[1740411159048,0.75067,2664.2,2664.1,3.858]
[1740411159447,3.2078,2664.3,2663.7,3.858]
[1740411159750,0.75087,2663.5,2663.4,0.00563327]
[1740411159950,1.8769,2663.9,2663.4,0.00563327]
[1740411159951,3.2078,2663.7,2663.4,0.00563327]
[1740411160248,0.75083,2663.7,2663.6,0.75084]
[1740411160442,0.75087,2663.5,2663.4,0.00563327]
[1740411160646,0.6917,2663.6,2663.4,0.00563327]
[1740411161046,1.44255,2663.6,2663.5,0.75087]
[1740411161249,0.6917,2663.6,2663.5,0.75087]
[1740411161448,1.44254,2663.6,2663.4,0.75651327]
[1740411161748,0.6917,2663.6,2663.5,0.75087]
[1740411161954,3.2078,2664.0,2663.4,0.75651327]
[1740411162149,0.75087,2663.5,2663.4,0.00563327]
[1740411162654,0.75102,2663.0,2662.9,0.75104]
[1740411162853,3.2078,2663.4,2662.8,4.15805972]
[1740411163151,0.7387,2663.6,2663.5,0.75087]
[1740411163349,0.7509,2663.4,2663.3,4.60791]
[1740411163550,0.7387,2663.6,2663.3,3.857]
[1740411163748,0.00563327,2663.6,2663.5,0.75087]
[1740411164157,0.75075,2664.0,2663.3,7.0648]
[1740411164348,5.78555,2664.3,2663.3,7.0648]
[1740411164550,3.9089,2664.3,2663.3,7.0648]
[1740411164858,1.87669,2664.2,2663.3,7.0648]
[1740411165157,3.2078,2664.0,2663.3,3.2078]
[1740411165356,3.2078,2663.9,2663.1,0.00563327]
[1740411165554,5.08497,2663.6,2663.1,0.00563327]
[1740411165754,1.877,2663.8,2663.2,0.75094]
[1740411165957,3.2078,2663.9,2663.6,0.75083]
[1740411166154,3.2078,2663.9,2663.4,3.856]
[1740411166356,0.75087,2663.5,2663.4,4.6069]
[1740411166552,3.95858,2663.9,2663.4,5.73323]
[1740411166752,3.2078,2663.9,2663.4,3.856]
[1740411166948,0.7032,2664.1,2663.4,5.73323]
[1740411167152,0.75074,2664.0,2663.5,5.08499]
[1740411167347,0.7032,2664.1,2663.5,5.08499]
[1740411167348,0.7032,2664.1,2663.5,3.2078]
[1740411167551,0.75083,2663.7,2663.5,3.2078]
[1740411167749,0.75084,2663.6,2663.5,3.2078]
[1740411167957,0.75084,2663.6,2663.5,3.95867]
[1740411168159,0.3765,2664.0,2663.5,3.2078]
[1740411168557,0.7508,2663.8,2663.5,3.2078]
[1740411168762,0.75078,2663.9,2663.5,3.2078]
[1740411168955,0.3765,2664.0,2663.7,0.7508]
[1740411169161,0.3765,2664.0,2663.5,3.2078]
[1740411169363,0.75084,2663.6,2663.5,3.2078]
[1740411169559,0.3765,2664.0,2663.5,3.2078]
[1740411169759,1.87698,2663.8,2663.1,0.00563327]
[1740411170061,3.2078,2663.5,2663.1,0.00563327]
[1740411170261,0.75096,2663.2,2663.1,0.00563327]
[1740411170466,3.95876,2663.2,2663.1,0.00563327]
[1740411170755,0.75115,2662.5,2662.0,5.36922]
[1740411170956,1.87743,2663.2,2662.7,0.7511]
[1740411171157,3.2078,2663.1,2662.4,24.687]
[1740411171359,0.75108,2662.8,2662.7,0.75109]
[1740411171559,1.87747,2663.1,2662.4,24.687]
[1740411171760,0.00563327,2663.0,2662.6,0.75111]
[1740411172161,0.00563327,2663.0,2662.5,0.00563327]
[1740411172758,0.75113,2662.6,2662.5,0.00563327]
[1740411173969,1.87795,2662.5,2661.9,44.655]
[1740411174266,0.75135,2661.8,2661.7,3.855]
[1740411174452,1.87803,2662.3,2661.7,3.855]
[1740411174660,0.75135,2661.8,2661.7,3.855]
[1740411174961,3.2078,2661.8,2661.5,61.624]
[1740411175151,0.7229,2662.4,2661.5,61.624]
[1740411175152,0.75139,2661.7,2661.6,0.75139]
[1740411175353,5.08587,2662.3,2661.5,61.62963327]
[1740411175558,0.7169,2662.5,2661.6,5.08633]
[1740411175756,0.75127,2662.1,2662.0,0.75127]
[1740411175961,0.75131,2662.0,2661.9,3.855]
[1740411176162,0.75141,2661.7,2661.6,0.75139]
[1740411176365,1.8781,2662.2,2661.6,3.855]
[1740411176665,0.7513,2662.0,2661.9,0.7513]
[1740411176967,3.2078,2662.4,2661.6,3.855]
[1740411177161,0.75126,2662.2,2661.7,5.08626]
[1740411177362,0.7218,2662.4,2662.0,3.2078]
[1740411177564,0.7169,2662.5,2662.4,0.75118]
[1740411177870,0.00563327,2663.0,2662.3,1.87802]
[1740411178068,0.75105,2662.9,2662.8,0.75105]
[1740411178268,0.00563327,2663.0,2662.7,3.855]
[1740411178664,0.75107,2662.8,2662.7,3.855]
[1740411179371,3.21343327,2663.0,2661.9,3.2078]
[1740411179572,0.7375,2662.9,2662.0,3.854]
[1740411179772,0.75111,2662.7,2662.6,0.7511]
[1740411179982,0.7375,2662.9,2662.3,3.854]
[1740411181067,0.00563327,2663.0,2662.5,1.87783]
[1740411181275,0.75666327,2663.0,2662.9,0.75104]
[1740411181566,0.75666327,2663.0,2662.1,40.8]
[1740411181567,0.75104,2662.9,2662.8,3.854]
[1740411182466,0.75664327,2663.0,2662.9,0.75104]
[1740411182672,0.00563327,2663.0,2662.9,0.75104]
[1740411182873,0.75104,2662.9,2662.8,4.60507]
[1740411183170,2.57346,2663.3,2663.2,0.75096]
[1740411183171,0.6961,2663.3,2663.2,0.75096]
[1740411183371,0.6961,2663.3,2662.8,3.854]
[1740411183372,0.701,2663.8,2663.1,1.87747]
[1740411183671,0.701,2663.8,2663.7,0.75082]
[1740411183870,3.2078,2664.5,2663.9,0.75075]
[1740411184075,0.75084,2663.6,2663.5,3.854]
[1740411184373,0.7509,2663.4,2663.3,0.00563327]
[1740411185172,6.7509,2663.4,2663.3,0.00563327]
[1740411185375,0.75115,2662.5,2662.4,3.853]
[1740411185673,3.2078,2662.9,2662.4,3.853]
[1740411185878,0.75114,2662.6,2662.5,0.75114]
[1740411186174,3.2078,2662.9,2662.4,3.853]
[1740411186370,3.8826,2663.5,2662.5,3.2078]
[1740411186567,3.8826,2663.5,2662.4,3.853]
[1740411186568,0.6919,2663.4,2662.8,3.2078]
[1740411186764,0.6919,2663.4,2663.1,3.2078]
[1740411186968,2.987,2663.4,2663.3,0.75093]
[1740411187179,0.00563327,2663.8,2663.7,0.75082]
[1740411187377,1.87705,2663.7,2663.1,3.2078]
[1740411187567,0.00563327,2663.8,2663.7,0.75082]
[1740411187873,3.9024,2664.3,2663.7,3.853]
[1740411188179,3.9024,2664.3,2663.8,3.853]
[1740411188369,0.75074,2664.0,2663.8,4.60377]
[1740411188571,0.75073,2664.1,2663.9,0.75074]
[1740411188766,0.75076,2663.9,2663.8,3.853]
[1740411189079,0.75079,2663.8,2663.7,3.85763327]
[1740411189581,3.90803327,2664.3,2663.7,4.60843327]
[1740411189877,3.90803327,2664.3,2663.7,0.00563327]
[1740411190177,0.00563327,2664.3,2663.8,3.2078]
[1740411190378,0.00563327,2664.3,2663.7,5.73464327]
[1740411190379,0.724,2665.1,2664.1,3.2078]
[1740411190576,0.3765,2664.9,2664.5,3.2078]
[1740411190774,0.3765,2664.9,2664.6,3.852]
[1740411191383,4.5975,2665.5,2664.7,1.87634]
[1740411191575,4.5975,2665.5,2664.6,44.652]
[1740411191776,4.5975,2665.5,2664.8,0.75048]
[1740411191980,0.75045,2665.0,2664.8,0.75048]
[1740411192282,5.08385,2665.2,2664.6,44.652]
[1740411192581,0.75062,2664.4,2664.3,20.826]
[1740411192878,0.75079,2663.8,2663.7,0.00563327]
[1740411193671,3.95859,2663.8,2663.7,0.00563327]
[1740411194068,3.95859,2663.8,2662.9,21.1197701]
[1740411194069,3.2078,2663.8,2662.9,20.822]
[1740411194272,3.851,2664.2,2663.2,0.75093]
[1740411194273,0.75091,2663.4,2663.2,0.75093]
[1740411194471,0.7208,2663.7,2663.6,0.75084]
[1740411194671,3.2078,2663.9,2663.1,3.2078]
[1740411194874,1.88252327,2664.0,2662.9,20.822]
[1740411194875,3.2078,2663.6,2662.9,20.822]
[1740411195178,0.7208,2663.5,2662.9,20.822]
[1740411195370,0.75098,2663.2,2663.0,0.75663327]
[1740411195572,0.7208,2663.5,2663.0,0.00563327]
[1740411196173,0.75098,2663.1,2663.0,3.21343327]
[1740411196374,0.75098,2663.1,2663.0,0.00563327]
[1740411196976,3.2078,2663.3,2662.0,24.0298]
[1740411197170,0.75127,2662.1,2662.0,3.2078]
[1740411197476,0.75135,2661.8,2661.7,4.76966659]
[1740411197673,0.75129,2662.1,2661.9,0.7513]
[1740411197873,0.75129,2662.1,2661.7,4.76966659]
[1740411197874,0.6894,2662.4,2661.8,1.87839]
[1740411198076,3.2078,2662.5,2661.8,1.87839]
[1740411198274,0.75122,2662.3,2662.1,0.75124]
[1740411198473,0.00563327,2662.4,2662.2,0.75123]
[1740411198674,0.00563327,2662.4,2661.8,0.00563327]
[1740411198675,0.00563327,2662.4,2661.9,3.2078]
[1740411198876,0.75128,2662.1,2661.9,3.95911]
[1740411199081,0.75132,2661.9,2661.8,0.00563327]
[1740411200584,0.00563327,2662.4,2662.0,0.75129]
[1740411200780,0.00563327,2662.4,2661.8,0.75697327]
[1740411200978,0.00563327,2662.4,2661.8,0.00563327]
[1740411201385,0.75122,2662.3,2662.1,0.75124]
[1740411201686,0.00563327,2662.4,2662.2,0.75124]
[1740411201886,0.00563327,2662.4,2662.3,0.75121]
[1740411202593,0.00563327,2662.4,2662.3,47.55121]
[1740411203396,0.7141,2663.5,2662.3,46.8]
[1740411203593,0.75091,2663.4,2662.9,3.2078]
[1740411203794,0.75091,2663.4,2662.4,1.87795]
[1740411203795,3.2078,2664.0,2663.2,3.2078]
[1740411203985,0.75085,2663.6,2663.4,0.75089]
[1740411204294,0.7509,2663.4,2663.3,3.85]
[1740411204491,0.00563327,2663.7,2663.3,3.85]
[1740411204692,0.00563327,2663.7,2663.4,3.2078]
[1740411204888,0.00563327,2663.7,2663.3,3.50662348]
[1740411205090,0.7509,2663.4,2663.3,3.2078]
[1740411205296,0.75093,2663.3,2663.2,0.00563327]
[1740411205487,1.46503,2663.3,2663.2,0.00563327]
[1740411206296,0.75118,2662.4,2662.3,20.827]
[1740411206490,3.2078,2662.9,2662.3,20.827]
[1740411206898,3.2078,2662.6,2661.7,40.8]
[1740411207195,0.7244,2662.5,2661.7,0.31165808]
[1740411207395,3.2078,2662.2,2661.9,0.00563327]
[1740411207597,0.75129,2662.0,2661.9,0.00563327]
[1740411208101,0.00563327,2662.3,2661.9,0.00563327]
[1740411208288,0.00563327,2662.3,2661.9,0.75694327]
[1740411208592,0.00563327,2662.3,2661.9,0.00563327]
[1740411208798,0.75129,2662.0,2661.9,0.00563327]
[1740411210706,0.75129,2662.0,2661.1,44.0078]
[1740411210707,0.75152,2661.2,2661.1,44.0078]
[1740411211004,0.75158,2661.0,2660.9,3.849]
[1740411211298,0.75161,2660.9,2660.8,3.2078]
[1740411211802,3.2078,2661.4,2661.0,0.75156]
[1740411212002,0.75153,2661.2,2660.8,3.50531009]
[1740411212296,3.2078,2661.4,2660.9,0.7516]
[1740411212297,0.75158,2661.0,2660.9,0.7516]
[1740411212502,0.75161,2660.9,2660.8,3.2078]
[1740411213003,3.2078,2661.4,2660.8,3.2078]
[1740411213305,3.95928,2661.4,2661.2,0.75151]
[1740411213496,0.75151,2661.3,2660.8,3.51387395]
[1740411213803,6.1948,2661.7,2661.6,0.75141]
[1740411214000,6.1948,2661.7,2661.2,1.87881]
[1740411214001,0.652,2662.1,2661.5,3.849]
[1740411214201,1.87825,2662.0,2661.5,3.849]
[1740411214702,1.87863,2661.5,2660.9,4.6006]
[1740411214898,0.75158,2661.0,2660.9,44.649]
[1740411215096,2.987,2661.4,2660.8,3.2078]
[1740411215395,1.87881,2661.2,2660.5,3.95949]
[1740411215595,0.75165,2660.8,2660.6,0.75731327]
[1740411215792,3.8553,2661.3,2660.6,0.00563327]
[1740411215993,0.00563327,2661.0,2660.6,0.00563327]
[1740411216199,0.75179,2660.3,2660.2,0.7518]
[1740411216398,0.75179,2660.3,2660.1,0.75181]
[1740411216601,3.2078,2660.7,2659.9,7.0568]
[1740411216804,3.2078,2660.7,2660.6,0.75169]
[1740411217301,3.2078,2660.7,2660.4,3.85463327]
[1740411217697,3.2078,2660.7,2660.6,0.75169]
[1740411217998,3.2078,2660.7,2660.4,3.85463327]
[1740411218199,0.00563327,2661.0,2660.4,3.85463327]
[1740411218502,0.00563327,2661.0,2660.6,3.2078]
[1740411218802,0.00563327,2661.0,2660.9,0.75161]
[1740411219001,0.00563327,2661.0,2660.9,3.95941]
[1740411219505,0.00563327,2661.0,2660.9,0.75161]
[1740411219701,0.75721327,2661.0,2660.8,3.95942]
[1740411219899,0.75721327,2661.0,2660.4,3.85463327]
[1740411219900,0.00563327,2661.0,2660.4,3.85463327]
[1740411220100,0.00563327,2661.0,2660.4,0.00563327]
[1740411220305,1.87902,2660.9,2660.4,3.85463327]
[1740411220499,0.75172,2660.5,2660.4,3.85463327]
[1740411220900,3.21343327,2661.0,2660.4,3.85463327]
[1740411221105,0.75172,2660.5,2660.4,3.85463327]
[1740411221603,3.95952,2660.5,2660.4,0.00563327]
[1740411221805,0.75186,2660.0,2659.7,3.2078]
[1740411222105,0.75193,2659.8,2659.7,0.75194]
[1740411222302,0.75185,2660.1,2659.5,1.88001]
[1740411222496,1.3312,2660.4,2660.1,0.75182]
[1740411222704,1.3312,2660.4,2660.3,0.75177]
[1740411222906,0.6523,2660.4,2660.3,0.75177]
[1740411223201,3.2078,2660.7,2660.0,5.09306327]
[1740411223202,3.2078,2660.7,2660.0,3.21343327]
[1740411223399,0.75183,2660.1,2660.0,0.00563327]
[1740411223902,3.2078,2660.1,2659.5,3.2078]
[1740411224210,0.75197,2659.6,2659.5,3.2078]
[1740411224404,0.75196,2659.7,2659.5,3.2078]
[1740411224599,1.3026,2660.0,2659.5,3.2078]
[1740411224797,1.3026,2660.0,2659.9,0.75189]
[1740411225204,2.05447,2660.0,2659.8,0.75189]
[1740411225400,1.3026,2660.0,2659.7,0.00375554]
[1740411225601,1.3026,2660.0,2659.9,0.75189]
[1740411226207,3.2078,2660.6,2659.9,0.75189]
[1740411226507,4.5342,2660.9,2660.1,5.08736]
[1740411226702,4.5342,2660.9,2660.8,0.75163]
[1740411226903,0.6595,2660.9,2660.6,3.849]
[1740411227103,1.87909,2660.8,2660.2,3.848]
[1740411227303,0.75176,2660.4,2660.1,3.848]
[1740411227503,3.2078,2660.7,2660.1,3.848]
[1740411228008,0.7518,2660.2,2660.1,3.848]
[1740411228201,0.75175,2660.4,2660.1,3.848]
[1740411228402,0.7518,2660.2,2660.1,3.848]
[1740411229105,3.2078,2660.4,2660.2,0.75179]
[1740411229311,3.2078,2660.7,2660.1,3.848]
[1740411229516,0.75179,2660.3,2660.1,4.59981]
[1740411229810,1.87923,2660.6,2660.1,4.59981]
[1740411229811,3.2078,2660.7,2660.1,3.848]
[1740411230013,1.0434,2660.8,2660.1,3.848]
[1740411230202,1.0434,2660.8,2660.7,0.75166]
[1740411230408,0.6595,2660.9,2660.8,0.75163]
[1740411230609,0.00563327,2661.0,2660.9,0.75161]
[1740411230810,0.75165,2660.8,2660.6,44.648]
[1740411231003,0.00563327,2661.0,2660.6,44.648]
[1740411231209,0.00563327,2661.0,2660.6,3.848]
[1740411231410,0.75721327,2661.0,2660.9,0.75161]
[1740411231610,0.75721327,2661.0,2660.8,0.75161]
[1740411231811,0.75162,2660.9,2660.7,0.75165]
[1740411232014,0.00563327,2661.0,2660.6,4.59968]
[1740411232309,0.75176,2660.4,2660.3,3.848]
[1740411232511,0.75172,2660.5,2660.3,3.848]
[1740411232709,3.2078,2660.8,2660.3,3.848]
[1740411232906,0.75175,2660.4,2660.3,3.848]
[1740411233107,0.75177,2660.3,2660.2,3.2078]
[1740411233505,0.75177,2660.4,2660.2,3.2078]
[1740411233709,0.75169,2660.6,2660.5,0.75169]
[1740411233910,0.75175,2660.4,2660.3,0.75176]
[1740411234115,0.75173,2660.5,2660.4,0.75173]
[1740411234311,0.3765,2660.7,2660.1,3.848]
[1740411234510,0.3765,2660.7,2660.3,0.75177]
[1740411234910,1.12818,2660.7,2660.6,0.75169]
[1740411235114,0.3765,2660.7,2660.1,3.848]
[1740411235309,0.75171,2660.6,2660.2,3.2078]
[1740411235513,0.3765,2660.8,2660.7,0.75166]
[1740411236011,0.00563327,2661.0,2660.6,3.847]
[1740411236318,0.00563327,2661.0,2660.6,7.0548]
[1740411236503,0.00563327,2661.0,2660.9,0.75161]
[1740411236905,0.75161,2660.9,2660.7,0.75165]
[1740411237108,0.75161,2660.9,2660.6,7.0548]
[1740411237109,0.00563327,2661.0,2660.6,7.0548]
[1740411237311,0.75165,2660.8,2660.6,7.80647]
[1740411237610,1.87902,2660.9,2660.4,0.75173]
[1740411237813,1.88460327,2661.0,2660.6,0.75167]
[1740411238006,0.00563327,2661.0,2660.4,3.2078]
[1740411238207,0.00563327,2661.0,2660.9,0.75161]
[1740411238411,0.00563327,2661.0,2660.4,3.2078]
[1740411238612,0.7517,2660.6,2660.5,0.75171]
[1740411238811,0.00563327,2661.0,2660.2,3.2078]
[1740411239015,1.87912,2660.8,2660.2,7.0548]
[1740411239215,0.00563327,2661.0,2660.3,1.87944]
[1740411239407,0.00563327,2661.0,2660.2,7.0548]
[1740411240310,0.75179,2660.3,2659.7,5.09139554]
[1740411240617,3.2078,2660.7,2660.0,3.2078]
[1740411240808,3.2078,2660.7,2660.4,0.75173]
[1740411241007,3.58993327,2661.0,2660.0,3.2078]
[1740411241209,0.6538,2660.8,2660.3,3.2078]
[1740411241410,0.6538,2660.8,2660.3,7.0538]
[1740411241612,0.38213327,2661.0,2660.3,7.0538]
[1740411241915,1.0303,2661.5,2660.7,3.2078]
[1740411242110,1.0303,2661.5,2661.4,0.75146]
[1740411242315,0.90042982,2661.9,2661.4,3.2078]
[1740411242510,0.7514,2661.7,2661.5,0.75143]
[1740411242810,0.75144,2661.5,2661.4,3.846]
[1740411243113,0.75146,2661.4,2661.3,0.00563327]
[1740411243413,0.75169,2660.6,2660.5,3.846]
[1740411243614,0.75169,2660.6,2659.9,1.87969]
[1740411243615,0.75177,2660.4,2660.2,0.75179]
[1740411243816,5.08699,2660.7,2660.0,0.75185]
[1740411244012,0.6678,2660.6,2659.7,3.846]
[1740411244217,1.87948,2660.3,2659.7,3.2078]
[1740411244415,3.21343327,2660.4,2659.9,0.00375554]
[1740411244607,0.75186,2660.0,2659.9,0.00375554]
[1740411245014,0.75184,2660.1,2660.0,0.75185]
[1740411245315,3.21343327,2660.4,2659.9,0.00375554]
[1740411245515,0.75186,2660.0,2659.9,0.00375554]
[1740411245715,3.21343327,2660.4,2659.9,0.00375554]
[1740411245910,0.75182,2660.2,2659.9,0.00375554]
[1740411246110,0.75186,2660.0,2659.9,0.00375554]
[1740411246408,3.21343327,2660.4,2659.9,0.00375554]
[1740411246614,0.00563327,2660.4,2660.3,0.75177]
[1740411246810,0.00563327,2660.4,2660.3,3.845]
[1740411247014,0.00563327,2660.4,2660.3,4.59677]
[1740411247318,0.75738327,2660.4,2660.3,3.845]
[1740411247514,0.00563327,2660.4,2659.9,3.84875554]
[1740411247715,0.00563327,2660.4,2660.0,0.75185]
[1740411247912,0.00563327,2660.4,2659.9,3.84875554]
[1740411248112,0.75184,2660.1,2659.9,4.60062554]
[1740411248316,0.00563327,2660.4,2659.9,3.84875554]
[1740411248618,0.7518,2660.2,2659.9,3.84875554]
[1740411248819,0.75186,2660.1,2659.9,4.60063554]
[1740411249022,0.00563327,2660.4,2659.9,3.84875554]
[1740411249210,0.75186,2660.0,2659.9,3.84875554]
[1740411249611,0.75186,2660.0,2659.9,0.00375554]
[1740411249814,0.00563327,2660.4,2659.9,0.00375554]
[1740411250124,0.00563327,2660.4,2659.9,3.21155554]
[1740411250418,0.00563327,2660.4,2660.3,0.75177]
[1740411250619,0.00563327,2660.4,2660.3,4.59677]
[1740411250818,0.75158,2661.0,2660.4,0.75173]
[1740411251115,1.2808,2661.1,2660.6,0.75167]
[1740411251319,1.2808,2661.1,2660.5,3.2078]
[1740411251518,3.2078,2661.2,2660.5,3.2078]
[1740411251716,3.2078,2661.2,2661.1,0.75155]
[1740411251916,0.75147,2661.4,2661.1,7.0528]
[1740411252118,0.00563327,2661.4,2661.1,7.0528]
[1740411252624,0.75161,2660.9,2660.8,3.2078]
[1740411252916,0.00563327,2661.4,2660.8,3.2078]
[1740411253112,0.00563327,2661.4,2661.1,3.2078]
[1740411253423,0.00563327,2661.4,2660.8,3.2078]
[1740411253716,0.00563327,2661.4,2661.3,0.75149]
[1740411253923,0.75709327,2661.4,2661.3,3.844]
[1740411254221,3.21343327,2661.4,2660.8,3.844]
[1740411254612,0.75161,2660.9,2660.8,3.844]
[1740411254816,0.75172,2660.5,2660.4,20.846]
[1740411255120,0.656,2660.8,2660.4,0.75173]
[1740411255320,0.656,2660.8,2660.2,3.844]
[1740411255321,0.75177,2660.3,2660.2,3.844]
[1740411255515,0.656,2660.8,2660.2,3.844]
[1740411255831,3.2078,2660.7,2659.9,0.00375554]
[1740411256121,0.75186,2660.0,2659.9,0.00375554]
[1740411258018,0.75197,2659.6,2659.5,20.844]
[1740411258323,0.75206,2659.3,2659.2,7.0508]
[1740411258820,0.6873,2659.9,2659.0,44.643]
[1740411258821,3.2078,2659.4,2659.0,44.643]
[1740411259023,0.75211,2659.1,2659.0,44.643]
[1740411259218,0.75211,2659.1,2659.0,3.843]
[1740411259717,1.88012,2659.4,2658.9,0.00563327]
[1740411259718,0.75214,2659.0,2658.9,0.00563327]
[1740411260218,0.75214,2659.0,2658.9,0.75780327]
[1740411260521,0.75208,2659.3,2659.1,0.75209]
[1740411260711,0.00563327,2659.5,2659.1,4.59509]
[1740411260914,0.75204,2659.4,2659.2,0.75206]
[1740411261112,0.00563327,2659.5,2659.4,0.75203]
[1740411261922,0.00563327,2659.5,2659.4,41.55203]
[1740411262721,0.75168,2660.7,2660.5,0.7517]
[1740411263025,0.75169,2660.6,2660.5,3.843]
[1740411263226,3.95945,2660.8,2660.6,0.75168]
[1740411263412,3.2078,2660.8,2660.5,3.843]
[1740411264014,3.2078,2660.8,2660.7,0.75166]
[1740411264423,0.00563327,2660.9,2660.8,0.75163]
[1740411264624,0.00563327,2660.9,2660.7,3.843]
[1740411264922,0.75163,2660.8,2660.7,3.843]
[1740411265221,0.00563327,2660.9,2660.6,3.842]
[1740411265522,0.00563327,2660.9,2660.8,0.75163]
[1740411265721,0.75166,2660.7,2660.6,3.842]
[1740411266419,0.75172,2660.5,2660.4,0.00563327]
[1740411267223,0.75194,2659.7,2659.6,3.2078]
[1740411267529,0.75197,2659.6,2659.5,3.842]
[1740411268529,3.2078,2660.2,2659.5,3.842]
[1740411268918,0.75196,2659.7,2659.5,3.842]
[1740411269119,0.75197,2659.6,2659.5,3.842]
[1740411269320,0.75197,2659.6,2659.5,4.59399]
[1740411269527,1.87959,2660.1,2659.6,0.75195]